[Event "*** Titled Tuesday Blitz"]
[Site "Chess.com"]
[Date "2020.04.28"]
[Round "2"]
[White "colegiodemadrid"]
[Black "starworld123"]
[Result "0-1"]
[WhiteElo "2287"]
[BlackElo "2635"]
[TimeControl "180+1"]
[EndTime "10:18:21 PDT"]
[Termination "starworld123 won by resignation"]

1. e4 {[%clk 0:03:00.9]} 1... c5 {[%clk 0:02:59.9]} 2. Nf3 {[%clk 0:02:58.6]}
2... d6 {[%clk 0:03:00.3]} 3. d4 {[%clk 0:02:58.4]} 3... cxd4 {[%clk 0:03:01.2]}
4. Nxd4 {[%clk 0:02:59.3]} 4... Nf6 {[%clk 0:03:01.8]} 5. Nc3 {[%clk 0:02:59.8]}
5... a6 {[%clk 0:03:02.4]} 6. Bg5 {[%clk 0:03:00.2]} 6... e6 {[%clk 0:03:02.4]}
7. f4 {[%clk 0:03:00.6]} 7... h6 {[%clk 0:03:03]} 8. Bh4 {[%clk 0:03:00]} 8...
Qb6 {[%clk 0:03:03.6]} 9. a3 {[%clk 0:02:59.5]} 9... Be7 {[%clk 0:03:03.1]} 10.
Bf2 {[%clk 0:02:56.5]} 10... Qc7 {[%clk 0:03:03.4]} 11. Qf3 {[%clk 0:02:56.5]}
11... b5 {[%clk 0:03:03.2]} 12. O-O-O {[%clk 0:02:54]} 12... Bb7 {[%clk
0:03:03.4]} 13. g4 {[%clk 0:02:54]} 13... d5 {[%clk 0:03:03.9]} 14. e5 {[%clk
0:02:53.3]} 14... Ne4 {[%clk 0:03:04.5]} 15. Nxe4 {[%clk 0:02:53.7]} 15... dxe4
{[%clk 0:03:05.4]} 16. Qe3 {[%clk 0:02:54.4]} 16... Nc6 {[%clk 0:03:05]} 17.
Nxc6 {[%clk 0:02:34.9]} 17... Qxc6 {[%clk 0:03:05.9]} 18. Bg2 {[%clk 0:02:25.8]}
18... Rc8 {[%clk 0:03:05.5]} 19. Rd2 {[%clk 0:02:25.4]} 19... O-O {[%clk
0:02:17.6]} 20. Re2 {[%clk 0:02:22.9]} 20... Qc4 {[%clk 0:02:05.4]} 21. Kb1
{[%clk 0:01:37.8]} 21... Bc5 {[%clk 0:02:02.2]} 22. Qd2 {[%clk 0:01:37.4]} 22...
Rfd8 {[%clk 0:01:52.1]} 23. Qe1 {[%clk 0:01:35.3]} 23... e3 {[%clk 0:01:39.8]}
24. Bxe3 {[%clk 0:01:35.1]} 24... Bxg2 {[%clk 0:01:30.7]} 25. Rxg2 {[%clk
0:01:36]} 25... Qe4 {[%clk 0:01:29.2]} 26. Re2 {[%clk 0:01:33.4]} 26... Bxe3
{[%clk 0:01:26.4]} 27. Rxe3 {[%clk 0:01:33.7]} 27... Qxc2+ {[%clk 0:01:25.5]}
28. Ka1 {[%clk 0:01:33.5]} 28... Rd2 {[%clk 0:01:19.4]} 29. Qb1 {[%clk
0:01:32.7]} 29... Qa4 {[%clk 0:01:18.5]} 30. b4 {[%clk 0:01:11.6]} 30... Rcc2
{[%clk 0:00:57.9]} 31. Qb3 {[%clk 0:01:11.2]} 31... Qxb3 {[%clk 0:00:43.1]} 32.
Rxb3 {[%clk 0:01:12.1]} 32... Rf2 {[%clk 0:00:43.8]} 33. g5 {[%clk 0:01:01.5]}
33... h5 {[%clk 0:00:40.2]} 34. g6 {[%clk 0:00:56.3]} 34... fxg6 {[%clk
0:00:40.7]} 35. Rg3 {[%clk 0:00:48.8]} 35... Rg2 {[%clk 0:00:17.4]} 36. Rxg2
{[%clk 0:00:34.9]} 36... Rxg2 {[%clk 0:00:18.3]} 37. h3 {[%clk 0:00:35.8]} 37...
Rf2 {[%clk 0:00:18.3]} 38. Rd1 {[%clk 0:00:32.6]} 38... Rxf4 {[%clk 0:00:17.8]}
39. Rd6 {[%clk 0:00:33.3]} 39... Rf3 {[%clk 0:00:18.3]} 40. Kb2 {[%clk
0:00:29.5]} 40... Rxh3 {[%clk 0:00:18.5]} 41. Rxe6 {[%clk 0:00:29.4]} 41... Rg3
{[%clk 0:00:18.1]} 42. Rxa6 {[%clk 0:00:28.5]} 42... h4 {[%clk 0:00:18.8]} 43.
a4 {[%clk 0:00:22.6]} 43... h3 {[%clk 0:00:17.3]} 44. axb5 {[%clk 0:00:21.1]}
44... h2 {[%clk 0:00:17.9]} 45. Ra8+ {[%clk 0:00:15.6]} 45... Kh7 {[%clk
0:00:17.6]} 0-1

[Event "*** Titled Tuesday Blitz"]
[Site "Chess.com"]
[Date "2020.04.28"]
[Round "2"]
[White "MilanJeremic"]
[Black "vaishali2001"]
[Result "0-1"]
[WhiteElo "2240"]
[BlackElo "2467"]
[TimeControl "180+1"]
[EndTime "10:18:21 PDT"]
[Termination "vaishali2001 won by resignation"]

1. d4 {[%clk 0:03:00.9]} 1... Nf6 {[%clk 0:02:59.2]} 2. Nf3 {[%clk 0:03:00.5]}
2... g6 {[%clk 0:02:55.2]} 3. g3 {[%clk 0:03:00.5]} 3... Bg7 {[%clk 0:02:55.5]}
4. Bg2 {[%clk 0:03:00.7]} 4... O-O {[%clk 0:02:53.4]} 5. O-O {[%clk 0:03:00.4]}
5... d5 {[%clk 0:02:49.5]} 6. b3 {[%clk 0:03:00.3]} 6... c5 {[%clk 0:02:45.4]}
7. e3 {[%clk 0:02:57.9]} 7... Nc6 {[%clk 0:02:39.6]} 8. Bb2 {[%clk 0:02:57.3]}
8... cxd4 {[%clk 0:02:39.7]} 9. Nxd4 {[%clk 0:02:53.8]} 9... Nxd4 {[%clk
0:02:36.6]} 10. exd4 {[%clk 0:02:52.8]} 10... Bg4 {[%clk 0:02:28.3]} 11. Bf3
{[%clk 0:02:45.4]} 11... Bxf3 {[%clk 0:02:23]} 12. Qxf3 {[%clk 0:02:44.5]} 12...
Rc8 {[%clk 0:02:23.9]} 13. c3 {[%clk 0:02:43.6]} 13... Ne4 {[%clk 0:02:20.7]}
14. Qe3 {[%clk 0:02:42]} 14... Nd6 {[%clk 0:01:59]} 15. Re1 {[%clk 0:02:36.4]}
15... Qb6 {[%clk 0:01:51.1]} 16. Nd2 {[%clk 0:02:28.1]} 16... e6 {[%clk
0:01:50.7]} 17. Ba3 {[%clk 0:02:22.7]} 17... Nf5 {[%clk 0:01:45.2]} 18. Qd3
{[%clk 0:02:19.3]} 18... Rfe8 {[%clk 0:01:40.8]} 19. Bc5 {[%clk 0:02:09.5]}
19... Qc6 {[%clk 0:01:30.7]} 20. Rac1 {[%clk 0:02:05.1]} 20... e5 {[%clk
0:01:20.8]} 21. Ba3 {[%clk 0:01:53.3]} 21... e4 {[%clk 0:01:15.8]} 22. Qe2
{[%clk 0:01:43.7]} 22... h5 {[%clk 0:00:57.6]} 23. Nf1 {[%clk 0:01:37.3]} 23...
b6 {[%clk 0:00:42.9]} 24. Ne3 {[%clk 0:01:34.5]} 24... Qe6 {[%clk 0:00:41.7]}
25. Nxf5 {[%clk 0:01:28.7]} 25... Qxf5 {[%clk 0:00:42.6]} 26. Bd6 {[%clk
0:01:24.7]} 26... Re6 {[%clk 0:00:40.9]} 27. Bf4 {[%clk 0:01:22.3]} 27... Rec6
{[%clk 0:00:32.9]} 28. Bd2 {[%clk 0:01:22]} 28... Qg4 {[%clk 0:00:28.8]} 29.
Qxg4 {[%clk 0:01:20.9]} 29... hxg4 {[%clk 0:00:29.7]} 30. Kg2 {[%clk 0:01:19.7]}
30... f5 {[%clk 0:00:30]} 31. h3 {[%clk 0:01:19]} 31... gxh3+ {[%clk 0:00:29.6]}
32. Kxh3 {[%clk 0:01:18.9]} 32... Kf7 {[%clk 0:00:29.2]} 33. Kg2 {[%clk
0:01:18.2]} 33... Bf8 {[%clk 0:00:26.6]} 34. Rh1 {[%clk 0:01:15.9]} 34... Bg7
{[%clk 0:00:17.9]} 35. Rh7 {[%clk 0:01:11.4]} 35... Rh8 {[%clk 0:00:17.7]} 36.
Rxh8 {[%clk 0:01:06]} 36... Bxh8 {[%clk 0:00:18.6]} 37. Rh1 {[%clk 0:01:05.6]}
37... Bg7 {[%clk 0:00:18.5]} 38. Rh7 {[%clk 0:01:03.8]} 38... Kg8 {[%clk
0:00:18.4]} 39. Rh1 {[%clk 0:01:03.2]} 39... a5 {[%clk 0:00:18.7]} 40. Rb1
{[%clk 0:01:01.3]} 40... b5 {[%clk 0:00:18.5]} 41. a4 {[%clk 0:00:53.3]} 41...
bxa4 {[%clk 0:00:17.2]} 42. bxa4 {[%clk 0:00:53.1]} 42... Rc4 {[%clk 0:00:17.7]}
43. Rb5 {[%clk 0:00:45.1]} 43... Rxa4 {[%clk 0:00:18.1]} 44. Rxd5 {[%clk
0:00:45.1]} 44... Ra2 {[%clk 0:00:18.6]} 45. Be1 {[%clk 0:00:40.3]} 45... a4
{[%clk 0:00:18.8]} 46. Ra5 {[%clk 0:00:38.1]} 46... a3 {[%clk 0:00:18.7]} 47. d5
{[%clk 0:00:34.9]} 47... Re2 {[%clk 0:00:17.4]} 48. Kf1 {[%clk 0:00:32.9]} 48...
Rxe1+ {[%clk 0:00:17.6]} 49. Kxe1 {[%clk 0:00:33]} 49... Bxc3+ {[%clk
0:00:17.9]} 50. Kd1 {[%clk 0:00:32.8]} 50... Bxa5 {[%clk 0:00:18.8]} 51. Kc2
{[%clk 0:00:32.1]} 51... Kf8 {[%clk 0:00:18.4]} 52. Kb3 {[%clk 0:00:32.1]} 52...
Ke7 {[%clk 0:00:18.9]} 53. Kxa3 {[%clk 0:00:32.2]} 53... Kd6 {[%clk 0:00:19.2]}
54. Ka4 {[%clk 0:00:32.4]} 54... Bb6 {[%clk 0:00:19.7]} 55. Kb4 {[%clk
0:00:32.6]} 55... Bxf2 {[%clk 0:00:20.1]} 0-1

[Event "*** Titled Tuesday Blitz"]
[Site "Chess.com"]
[Date "2020.04.28"]
[Round "2"]
[White "LiamPutnam2008"]
[Black "Fandorine"]
[Result "0-1"]
[WhiteElo "2567"]
[BlackElo "2892"]
[TimeControl "180+1"]
[EndTime "10:18:22 PDT"]
[Termination "Fandorine won on time"]

1. d4 {[%clk 0:03:00.9]} 1... Nf6 {[%clk 0:03:00.1]} 2. Bf4 {[%clk 0:02:59.3]}
2... d6 {[%clk 0:02:59.7]} 3. e3 {[%clk 0:02:56.8]} 3... g6 {[%clk 0:02:59.1]}
4. Nf3 {[%clk 0:02:57.3]} 4... Bg7 {[%clk 0:02:59.6]} 5. Be2 {[%clk 0:02:56.3]}
5... O-O {[%clk 0:02:58.5]} 6. h3 {[%clk 0:02:56.1]} 6... c5 {[%clk 0:02:58.2]}
7. O-O {[%clk 0:02:54.8]} 7... b6 {[%clk 0:02:53.3]} 8. c4 {[%clk 0:02:52.3]}
8... Bb7 {[%clk 0:02:48.8]} 9. Nc3 {[%clk 0:02:52]} 9... Ne4 {[%clk 0:02:36.4]}
10. Nd2 {[%clk 0:02:17.8]} 10... Nxc3 {[%clk 0:02:31.5]} 11. bxc3 {[%clk
0:02:18.7]} 11... Nd7 {[%clk 0:02:30.9]} 12. a4 {[%clk 0:02:12.1]} 12... Nf6
{[%clk 0:02:23.7]} 13. a5 {[%clk 0:02:10.9]} 13... Qc7 {[%clk 0:02:21.3]} 14.
Qb3 {[%clk 0:02:03.8]} 14... Ne4 {[%clk 0:02:01]} 15. Nxe4 {[%clk 0:01:43.3]}
15... Bxe4 {[%clk 0:02:01.9]} 16. f3 {[%clk 0:01:43.9]} 16... Bf5 {[%clk
0:01:53.7]} 17. e4 {[%clk 0:01:39.8]} 17... Bd7 {[%clk 0:01:46]} 18. Be3 {[%clk
0:01:18.9]} 18... Rab8 {[%clk 0:01:34.7]} 19. Qa3 {[%clk 0:01:10.4]} 19... h5
{[%clk 0:01:28.6]} 20. Rfb1 {[%clk 0:00:49.4]} 20... Be6 {[%clk 0:01:17.9]} 21.
axb6 {[%clk 0:00:29.5]} 21... axb6 {[%clk 0:01:17.8]} 22. d5 {[%clk 0:00:30.1]}
22... Bd7 {[%clk 0:01:16.4]} 23. Rb3 {[%clk 0:00:28.7]} 23... Rb7 {[%clk
0:00:55.6]} 24. g4 {[%clk 0:00:21.1]} 24... hxg4 {[%clk 0:00:49.3]} 25. hxg4
{[%clk 0:00:22]} 25... e6 {[%clk 0:00:49.6]} 26. Kf2 {[%clk 0:00:19.3]} 26...
exd5 {[%clk 0:00:47.6]} 27. cxd5 {[%clk 0:00:17.4]} 27... b5 {[%clk 0:00:47.1]}
28. Rh1 {[%clk 0:00:10.8]} 28... Rfb8 {[%clk 0:00:27.3]} 29. Qc1 {[%clk
0:00:09.9]} 29... b4 {[%clk 0:00:26.9]} 30. c4 {[%clk 0:00:09.6]} 30... Qd8
{[%clk 0:00:24.5]} 31. Bg5 {[%clk 0:00:07.4]} 31... Qf8 {[%clk 0:00:24.2]} 32.
Qg1 {[%clk 0:00:03.8]} 32... Bd4+ {[%clk 0:00:21.9]} 33. Be3 {[%clk 0:00:03.7]}
33... Qg7 {[%clk 0:00:22.5]} 34. Qh2 {[%clk 0:00:03.4]} 34... Ra7 {[%clk
0:00:20.9]} 35. Qxd6 {[%clk 0:00:02.9]} 35... Rba8 {[%clk 0:00:18.8]} 36. Bxd4
{[%clk 0:00:02.7]} 36... Qxd4+ {[%clk 0:00:19.2]} 37. Kg2 {[%clk 0:00:03.6]}
37... Ra2 {[%clk 0:00:12.2]} 38. Re1 {[%clk 0:00:03.4]} 38... Ba4 {[%clk
0:00:10.7]} 39. Rbb1 {[%clk 0:00:02.6]} 39... Bc2 {[%clk 0:00:11.3]} 40. Rbc1
{[%clk 0:00:02.7]} 40... Bd3 {[%clk 0:00:11.9]} 41. Kf1 {[%clk 0:00:03]} 41...
Qe3 {[%clk 0:00:10.2]} 42. Qc6 {[%clk 0:00:02]} 42... Bxe2+ {[%clk 0:00:07.5]}
43. Kg2 {[%clk 0:00:01.8]} 43... Bxf3+ {[%clk 0:00:07.9]} 0-1

[Event "*** Titled Tuesday Blitz"]
[Site "Chess.com"]
[Date "2020.04.28"]
[Round "2"]
[White "EfM13"]
[Black "AnkitGajwa"]
[Result "0-1"]
[WhiteElo "2242"]
[BlackElo "2469"]
[TimeControl "180+1"]
[EndTime "10:18:23 PDT"]
[Termination "AnkitGajwa won by checkmate"]

1. e4 {[%clk 0:02:59.3]} 1... c5 {[%clk 0:02:59.4]} 2. c3 {[%clk 0:02:59.2]}
2... Nf6 {[%clk 0:02:57.4]} 3. e5 {[%clk 0:02:59.1]} 3... Nd5 {[%clk 0:02:58]}
4. d4 {[%clk 0:02:59.3]} 4... d6 {[%clk 0:02:57.7]} 5. Nf3 {[%clk 0:02:58.3]}
5... Nc6 {[%clk 0:02:56.3]} 6. Bc4 {[%clk 0:02:56]} 6... Nb6 {[%clk 0:02:56]} 7.
Bb5 {[%clk 0:02:56.2]} 7... cxd4 {[%clk 0:02:54.2]} 8. cxd4 {[%clk 0:02:55.5]}
8... a6 {[%clk 0:02:53.8]} 9. Be2 {[%clk 0:02:50.1]} 9... e6 {[%clk 0:02:53.2]}
10. O-O {[%clk 0:02:48.9]} 10... Be7 {[%clk 0:02:50]} 11. Nc3 {[%clk 0:02:47.4]}
11... O-O {[%clk 0:02:49.9]} 12. Bd3 {[%clk 0:02:45.9]} 12... dxe5 {[%clk
0:02:44.2]} 13. dxe5 {[%clk 0:02:41.7]} 13... Nb4 {[%clk 0:02:41.7]} 14. Be4
{[%clk 0:02:40.3]} 14... Qc7 {[%clk 0:02:17.6]} 15. Qe2 {[%clk 0:02:32.2]} 15...
Bd7 {[%clk 0:02:13.4]} 16. Bf4 {[%clk 0:02:12.7]} 16... Rac8 {[%clk 0:01:49.1]}
17. Rfc1 {[%clk 0:01:59.7]} 17... Qb8 {[%clk 0:01:46.4]} 18. Nd2 {[%clk
0:01:41.4]} 18... Rfd8 {[%clk 0:01:38]} 19. Qh5 {[%clk 0:01:37.3]} 19... g6
{[%clk 0:01:37.2]} 20. Qf3 {[%clk 0:01:32.2]} 20... Be8 {[%clk 0:01:30.5]} 21.
Bxb7 {[%clk 0:01:29.7]} 21... Rd3 {[%clk 0:01:25.3]} 22. Be3 {[%clk 0:01:16.8]}
22... Rcd8 {[%clk 0:01:25]} 23. Nde4 {[%clk 0:01:10.3]} 23... Nc4 {[%clk
0:01:07.2]} 24. Nf6+ {[%clk 0:00:58]} 24... Kg7 {[%clk 0:00:31.6]} 25. Nxe8+
{[%clk 0:00:57.2]} 25... Rxe8 {[%clk 0:00:30.8]} 26. Qe4 {[%clk 0:00:57.1]}
26... Nxe3 {[%clk 0:00:18.2]} 27. fxe3 {[%clk 0:00:55.3]} 27... Rd7 {[%clk
0:00:18.4]} 28. Bc6 {[%clk 0:00:41.6]} 28... Nxc6 {[%clk 0:00:18.6]} 29. Qxc6
{[%clk 0:00:41.5]} 29... Red8 {[%clk 0:00:19.3]} 30. Rc2 {[%clk 0:00:32.1]}
30... Qxe5 {[%clk 0:00:18]} 31. Qe4 {[%clk 0:00:32.2]} 31... Qxe4 {[%clk
0:00:16]} 32. Nxe4 {[%clk 0:00:31.3]} 32... f5 {[%clk 0:00:16.6]} 33. Nf2 {[%clk
0:00:27.7]} 33... Bg5 {[%clk 0:00:15.1]} 34. Re1 {[%clk 0:00:26.3]} 34... Rd2
{[%clk 0:00:14.7]} 35. Rc7+ {[%clk 0:00:24.7]} 35... Kh6 {[%clk 0:00:13.9]} 36.
Rb7 {[%clk 0:00:23.3]} 36... Bf6 {[%clk 0:00:12.2]} 37. Rb6 {[%clk 0:00:21.4]}
37... Rxb2 {[%clk 0:00:08.8]} 38. Rxe6 {[%clk 0:00:21.2]} 38... Bh4 {[%clk
0:00:09.4]} 39. g3 {[%clk 0:00:20.5]} 39... Bg5 {[%clk 0:00:09.7]} 40. Nh3
{[%clk 0:00:19.1]} 40... Rdd2 {[%clk 0:00:09.3]} 41. Nxg5 {[%clk 0:00:17.9]}
41... Kxg5 {[%clk 0:00:10.2]} 42. e4 {[%clk 0:00:14.6]} 42... Rg2+ {[%clk
0:00:10.1]} 43. Kf1 {[%clk 0:00:14.5]} 43... Rbf2# {[%clk 0:00:09.4]} 0-1

[Event "*** Titled Tuesday Blitz"]
[Site "Chess.com"]
[Date "2020.04.28"]
[Round "2"]
[White "ALEXJR20"]
[Black "White_Ghost"]
[Result "0-1"]
[WhiteElo "2211"]
[BlackElo "2451"]
[TimeControl "180+1"]
[EndTime "10:18:23 PDT"]
[Termination "White_Ghost won on time"]

1. d4 {[%clk 0:03:00.9]} 1... d5 {[%clk 0:02:58.8]} 2. c4 {[%clk 0:03:01.2]}
2... c6 {[%clk 0:02:59.1]} 3. Nf3 {[%clk 0:03:00.4]} 3... Nf6 {[%clk 0:02:58.8]}
4. g3 {[%clk 0:03:00.6]} 4... Bg4 {[%clk 0:02:54]} 5. Bg2 {[%clk 0:03:00.7]}
5... Nbd7 {[%clk 0:02:52.6]} 6. O-O {[%clk 0:03:00.8]} 6... e6 {[%clk
0:02:50.1]} 7. Nc3 {[%clk 0:03:00.5]} 7... Be7 {[%clk 0:02:47.1]} 8. Bf4 {[%clk
0:02:59.9]} 8... O-O {[%clk 0:02:46.1]} 9. Re1 {[%clk 0:02:59.5]} 9... dxc4
{[%clk 0:02:22.4]} 10. a4 {[%clk 0:02:43.9]} 10... Nd5 {[%clk 0:02:17.8]} 11. e4
{[%clk 0:02:37.7]} 11... Nxf4 {[%clk 0:02:15.3]} 12. gxf4 {[%clk 0:02:38.6]}
12... Qa5 {[%clk 0:02:06.9]} 13. h3 {[%clk 0:02:23.2]} 13... Bh5 {[%clk
0:02:04.8]} 14. Qe2 {[%clk 0:02:15.4]} 14... Nb6 {[%clk 0:01:44.1]} 15. Qe3
{[%clk 0:02:11.4]} 15... Rad8 {[%clk 0:01:26.7]} 16. Kh1 {[%clk 0:01:21.1]}
16... Bf6 {[%clk 0:01:14.4]} 17. Ne5 {[%clk 0:01:15.4]} 17... Nd7 {[%clk
0:00:56.3]} 18. Nxc4 {[%clk 0:01:10.9]} 18... Qb4 {[%clk 0:00:56.5]} 19. Ne5
{[%clk 0:01:00.5]} 19... Nb6 {[%clk 0:00:47.4]} 20. a5 {[%clk 0:00:27.5]} 20...
Bxe5 {[%clk 0:00:33.2]} 21. dxe5 {[%clk 0:00:21.1]} 21... Nc4 {[%clk 0:00:32.8]}
22. Qg3 {[%clk 0:00:21.4]} 22... Qxb2 {[%clk 0:00:30.3]} 23. Rg1 {[%clk
0:00:20.6]} 23... Qc2 {[%clk 0:00:17.7]} 24. Rac1 {[%clk 0:00:14.9]} 24... Qd3
{[%clk 0:00:17.1]} 25. f3 {[%clk 0:00:15.3]} 25... Bg6 {[%clk 0:00:14.1]} 26. h4
{[%clk 0:00:14.4]} 26... h5 {[%clk 0:00:13.7]} 27. Qg5 {[%clk 0:00:13.7]} 27...
Ne3 {[%clk 0:00:13.5]} 28. Kh2 {[%clk 0:00:11.6]} 28... Nxg2 {[%clk 0:00:12.5]}
29. Rxg2 {[%clk 0:00:12.5]} 29... Qxf3 {[%clk 0:00:11.8]} 30. Na4 {[%clk
0:00:07.8]} 30... Rd3 {[%clk 0:00:10.2]} 31. Nc5 {[%clk 0:00:05.3]} 31... Qh3+
{[%clk 0:00:09.1]} 32. Kg1 {[%clk 0:00:05.3]} 32... Qe3+ {[%clk 0:00:10]} 33.
Kh2 {[%clk 0:00:03.9]} 33... Qxc1 {[%clk 0:00:08.3]} 34. Nxe6 {[%clk 0:00:04]}
34... Qe3 {[%clk 0:00:06.6]} 35. f5 {[%clk 0:00:01.2]} 35... Qh3+ {[%clk
0:00:06.6]} 36. Kg1 {[%clk 0:00:01.6]} 36... Rd1+ {[%clk 0:00:07.5]} 37. Kf2
{[%clk 0:00:02.2]} 37... Qd3 {[%clk 0:00:06.3]} 38. fxg6 {[%clk 0:00:01.7]}
38... fxe6+ {[%clk 0:00:06.7]} 0-1

[Event "*** Titled Tuesday Blitz"]
[Site "Chess.com"]
[Date "2020.04.28"]
[Round "2"]
[White "Shuvatkin_Vladimir"]
[Black "RATNAKARAN"]
[Result "1/2-1/2"]
[WhiteElo "2317"]
[BlackElo "2602"]
[TimeControl "180+1"]
[EndTime "10:18:24 PDT"]
[Termination "Game drawn by repetition"]

1. d4 {[%clk 0:03:00.9]} 1... Nf6 {[%clk 0:02:59.3]} 2. Nf3 {[%clk 0:03:00.4]}
2... g6 {[%clk 0:02:58.9]} 3. g3 {[%clk 0:03:00.7]} 3... Bg7 {[%clk 0:02:58.3]}
4. Bg2 {[%clk 0:03:00.5]} 4... O-O {[%clk 0:02:57.8]} 5. O-O {[%clk 0:03:00.4]}
5... d6 {[%clk 0:02:57.5]} 6. c4 {[%clk 0:03:00]} 6... Nbd7 {[%clk 0:02:57.7]}
7. b3 {[%clk 0:02:59.5]} 7... e5 {[%clk 0:02:57.9]} 8. Bb2 {[%clk 0:02:58]} 8...
e4 {[%clk 0:02:58.1]} 9. Ng5 {[%clk 0:02:55]} 9... Re8 {[%clk 0:02:57.2]} 10. e3
{[%clk 0:02:52.4]} 10... h6 {[%clk 0:02:55]} 11. Nh3 {[%clk 0:02:52.4]} 11...
Nf8 {[%clk 0:02:55.2]} 12. Nf4 {[%clk 0:02:51]} 12... Bg4 {[%clk 0:02:53]} 13.
Qc2 {[%clk 0:02:50.5]} 13... g5 {[%clk 0:02:53]} 14. Ne2 {[%clk 0:02:49.2]}
14... Bf3 {[%clk 0:02:50.9]} 15. Nec3 {[%clk 0:02:41.2]} 15... Qd7 {[%clk
0:02:48]} 16. Nd2 {[%clk 0:02:35.3]} 16... g4 {[%clk 0:02:47.8]} 17. d5 {[%clk
0:02:29.6]} 17... N8h7 {[%clk 0:02:47.1]} 18. Rfe1 {[%clk 0:02:24.8]} 18... Ng5
{[%clk 0:02:46.6]} 19. Bf1 {[%clk 0:02:24.7]} 19... Qf5 {[%clk 0:02:43.6]} 20.
Nb5 {[%clk 0:02:21.9]} 20... Re7 {[%clk 0:02:42.6]} 21. Nd4 {[%clk 0:02:17.5]}
21... Qg6 {[%clk 0:02:42.7]} 22. N2xf3 {[%clk 0:02:11.2]} 22... Nxf3+ {[%clk
0:02:36.5]} 23. Nxf3 {[%clk 0:02:10.4]} 23... gxf3 {[%clk 0:02:36.8]} 24. Red1
{[%clk 0:01:33.8]} 24... b6 {[%clk 0:02:32.5]} 25. b4 {[%clk 0:01:30.5]} 25...
Rae8 {[%clk 0:02:28.6]} 26. Rac1 {[%clk 0:01:25.6]} 26... Qh5 {[%clk 0:02:24.3]}
27. Bxf6 {[%clk 0:01:20.8]} 27... Bxf6 {[%clk 0:02:23.6]} 28. c5 {[%clk
0:01:21.1]} 28... bxc5 {[%clk 0:02:19]} 29. bxc5 {[%clk 0:01:21]} 29... Re5
{[%clk 0:02:18.4]} 30. cxd6 {[%clk 0:01:18.2]} 30... cxd6 {[%clk 0:02:19]} 31.
Qc6 {[%clk 0:01:16.6]} 31... Rd8 {[%clk 0:02:14.8]} 32. Qb7 {[%clk 0:01:13.9]}
32... Kg7 {[%clk 0:01:57.6]} 33. Qxa7 {[%clk 0:00:58]} 33... Rxd5 {[%clk
0:01:56.5]} 34. Qc7 {[%clk 0:00:47.8]} 34... Rxd1 {[%clk 0:01:39.5]} 35. Rxd1
{[%clk 0:00:47]} 35... Qe5 {[%clk 0:01:38.4]} 36. a4 {[%clk 0:00:44.3]} 36... d5
{[%clk 0:01:34.4]} 37. Qxe5 {[%clk 0:00:42.8]} 37... Bxe5 {[%clk 0:01:35.3]} 38.
a5 {[%clk 0:00:42.2]} 38... Bb8 {[%clk 0:01:27.4]} 39. a6 {[%clk 0:00:41.9]}
39... Ba7 {[%clk 0:01:27.5]} 40. Rb1 {[%clk 0:00:38.4]} 40... Rb8 {[%clk
0:01:25]} 41. Rxb8 {[%clk 0:00:33.9]} 41... Bxb8 {[%clk 0:01:25.9]} 42. Bb5
{[%clk 0:00:33.9]} 42... Kf6 {[%clk 0:01:26]} 43. Bc6 {[%clk 0:00:33.9]} 43...
Ke6 {[%clk 0:01:26.1]} 44. Bb7 {[%clk 0:00:32.4]} 44... Kd6 {[%clk 0:01:25.9]}
45. h4 {[%clk 0:00:27.7]} 45... f5 {[%clk 0:01:22.8]} 46. Bc8 {[%clk 0:00:26.2]}
46... Ke5 {[%clk 0:01:22.9]} 47. Bd7 {[%clk 0:00:22]} 47... Ba7 {[%clk
0:01:22.6]} 48. Kf1 {[%clk 0:00:21.8]} 48... d4 {[%clk 0:01:21.8]} 49. exd4+
{[%clk 0:00:20.5]} 49... Bxd4 {[%clk 0:01:21.8]} 50. Bc8 {[%clk 0:00:20.7]}
50... f4 {[%clk 0:01:21.9]} 51. gxf4+ {[%clk 0:00:18.5]} 51... Kxf4 {[%clk
0:01:22.8]} 52. Bd7 {[%clk 0:00:18]} 52... Ba7 {[%clk 0:01:21.6]} 53. Bc8 {[%clk
0:00:18]} 53... e3 {[%clk 0:01:19.8]} 54. fxe3+ {[%clk 0:00:17.6]} 54... Kxe3
{[%clk 0:01:20.7]} 55. Bd7 {[%clk 0:00:17]} 55... Kf4 {[%clk 0:01:21]} 56. Be8
{[%clk 0:00:16.8]} 56... Kg4 {[%clk 0:01:19.7]} 57. h5 {[%clk 0:00:17.2]} 57...
Kg3 {[%clk 0:01:19.4]} 58. Bf7 {[%clk 0:00:16.6]} 58... Kf4 {[%clk 0:01:18.7]}
59. Be8 {[%clk 0:00:17]} 59... Kf5 {[%clk 0:01:18.7]} 60. Bf7 {[%clk 0:00:17]}
60... f2 {[%clk 0:01:18.5]} 61. Be8 {[%clk 0:00:16.8]} 61... Ke6 {[%clk
0:01:18.8]} 62. Bg6 {[%clk 0:00:16.7]} 62... Ke7 {[%clk 0:01:19.1]} 63. Kg2
{[%clk 0:00:16.8]} 63... Kd6 {[%clk 0:01:18.2]} 64. Kf1 {[%clk 0:00:17]} 64...
Kc7 {[%clk 0:01:18.4]} 65. Bd3 {[%clk 0:00:16.5]} 65... Kc6 {[%clk 0:01:18.3]}
66. Be2 {[%clk 0:00:16.9]} 66... Kb6 {[%clk 0:01:19]} 67. Kg2 {[%clk 0:00:17]}
67... Kc7 {[%clk 0:01:18.1]} 68. Kf1 {[%clk 0:00:17.3]} 68... Kd6 {[%clk
0:01:18.4]} 69. Kg2 {[%clk 0:00:17.7]} 69... Ke5 {[%clk 0:01:19.1]} 70. Kf1
{[%clk 0:00:18.1]} 70... Kf4 {[%clk 0:01:19.7]} 71. Bb5 {[%clk 0:00:18.3]} 71...
Ke3 {[%clk 0:01:20]} 72. Be8 {[%clk 0:00:18.7]} 72... Kd2 {[%clk 0:01:20.1]} 73.
Bf7 {[%clk 0:00:19.3]} 73... Bb6 {[%clk 0:01:20.3]} 74. Be8 {[%clk 0:00:19.7]}
74... Ba7 {[%clk 0:01:21.2]} 75. Bf7 {[%clk 0:00:20.1]} 75... Bb6 {[%clk
0:01:21.6]} 76. Be8 {[%clk 0:00:20.5]} 76... Ba7 {[%clk 0:01:21.9]} 1/2-1/2